[Event "*** Titled Tuesday Blitz"]
[Site "Chess.com"]
[Date "2021.04.20"]
[Round "11"]
[White "Abund"]
[Black "Goryachkina"]
[Result "1/2-1/2"]
[WhiteElo "2743"]
[BlackElo "2656"]
[TimeControl "180+1"]
[EndTime "12:06:45 PDT"]
[Termination "Game drawn - insufficient material"]

1. e4 {[%clk 0:03:00.9]} 1... c5 {[%clk 0:02:59.7]} 2. Nf3 {[%clk 0:03:01.2]}
2... e6 {[%clk 0:03:00]} 3. g3 {[%clk 0:03:01.1]} 3... d5 {[%clk 0:02:57]} 4.
exd5 {[%clk 0:03:00.1]} 4... exd5 {[%clk 0:02:57.1]} 5. d4 {[%clk 0:02:59.3]}
5... Nf6 {[%clk 0:02:53.5]} 6. Bg2 {[%clk 0:02:58.4]} 6... Be7 {[%clk
0:02:52.8]} 7. O-O {[%clk 0:02:58]} 7... O-O {[%clk 0:02:52.6]} 8. dxc5 {[%clk
0:02:58.4]} 8... Bxc5 {[%clk 0:02:52.1]} 9. Nc3 {[%clk 0:02:58.2]} 9... h6
{[%clk 0:02:49.1]} 10. a3 {[%clk 0:02:58.1]} 10... Be6 {[%clk 0:02:42.5]} 11. b4
{[%clk 0:02:57.5]} 11... Be7 {[%clk 0:02:42.7]} 12. Bb2 {[%clk 0:02:56.6]} 12...
Nbd7 {[%clk 0:02:43.1]} 13. Nd4 {[%clk 0:02:54.1]} 13... Nb6 {[%clk 0:02:40.1]}
14. Nxe6 {[%clk 0:02:42.2]} 14... fxe6 {[%clk 0:02:41]} 15. Qe2 {[%clk
0:02:37.3]} 15... Nc4 {[%clk 0:02:11.2]} 16. Qxe6+ {[%clk 0:02:32.5]} 16... Kh8
{[%clk 0:02:10.8]} 17. Nxd5 {[%clk 0:02:21.4]} 17... Re8 {[%clk 0:01:35.3]} 18.
Nxf6 {[%clk 0:01:45.8]} 18... Bxf6 {[%clk 0:01:28.9]} 19. Bxf6 {[%clk 0:01:44]}
19... Rxe6 {[%clk 0:01:27.8]} 20. Bxd8 {[%clk 0:01:43.6]} 20... Rxd8 {[%clk
0:01:28]} 21. Bxb7 {[%clk 0:01:42.2]} 21... Rd2 {[%clk 0:01:24.1]} 22. c3 {[%clk
0:01:27.6]} 22... Rf6 {[%clk 0:01:17.2]} 23. a4 {[%clk 0:01:17.3]} 23... Rc2
{[%clk 0:01:14.4]} 24. Rac1 {[%clk 0:01:13.8]} 24... Rb2 {[%clk 0:01:06.9]} 25.
Rcd1 {[%clk 0:01:00.8]} 25... Nd2 {[%clk 0:00:57.8]} 26. Rfe1 {[%clk 0:00:53.8]}
26... Nf3+ {[%clk 0:00:57.8]} 27. Bxf3 {[%clk 0:00:52.2]} 27... Rxf3 {[%clk
0:00:58.7]} 28. Rb1 {[%clk 0:00:42.7]} 28... Rbxf2 {[%clk 0:00:50.3]} 29. Rf1
{[%clk 0:00:33]} 29... Rxf1+ {[%clk 0:00:47.2]} 30. Rxf1 {[%clk 0:00:33.9]}
30... Rxc3 {[%clk 0:00:47.6]} 31. a5 {[%clk 0:00:16]} 31... Rb3 {[%clk
0:00:45.2]} 32. Rf4 {[%clk 0:00:14.5]} 32... Rb2 {[%clk 0:00:45.2]} 33. h4
{[%clk 0:00:13.5]} 33... Kh7 {[%clk 0:00:31.6]} 34. h5 {[%clk 0:00:13.5]} 34...
Rd2 {[%clk 0:00:27.7]} 35. g4 {[%clk 0:00:13.1]} 35... Rb2 {[%clk 0:00:20]} 36.
Kf1 {[%clk 0:00:13]} 36... g5 {[%clk 0:00:18.7]} 37. hxg6+ {[%clk 0:00:06]}
37... Kxg6 {[%clk 0:00:18.8]} 38. Rc4 {[%clk 0:00:04.5]} 38... Kg5 {[%clk
0:00:18]} 39. Rc7 {[%clk 0:00:03.5]} 39... Rxb4 {[%clk 0:00:16.8]} 40. Rxa7
{[%clk 0:00:03.6]} 40... Kxg4 {[%clk 0:00:15.3]} 41. a6 {[%clk 0:00:03.3]} 41...
Ra4 {[%clk 0:00:14.9]} 42. Rg7+ {[%clk 0:00:02.9]} 42... Kf3 {[%clk 0:00:15.4]}
43. Rf7+ {[%clk 0:00:03.3]} 43... Ke3 {[%clk 0:00:15.8]} 44. a7 {[%clk
0:00:04.2]} 44... h5 {[%clk 0:00:14.2]} 45. Kg2 {[%clk 0:00:04.6]} 45... Ke4
{[%clk 0:00:10.6]} 46. Kg3 {[%clk 0:00:04.3]} 46... Kd5 {[%clk 0:00:10.1]} 47.
Rh7 {[%clk 0:00:04.1]} 47... Kc6 {[%clk 0:00:09]} 48. Rh6+ {[%clk 0:00:03.8]}
48... Kb7 {[%clk 0:00:08.8]} 49. Rh7+ {[%clk 0:00:04.2]} 49... Ka8 {[%clk
0:00:09]} 50. Rh8+ {[%clk 0:00:04.1]} 50... Kxa7 {[%clk 0:00:09.2]} 51. Rh7+
{[%clk 0:00:05]} 51... Kb6 {[%clk 0:00:09.2]} 52. Rxh5 {[%clk 0:00:05.9]} 52...
Ra3+ {[%clk 0:00:09.2]} 53. Kh4 {[%clk 0:00:05.9]} 53... Ra4+ {[%clk 0:00:09.7]}
54. Kg5 {[%clk 0:00:06.4]} 54... Ra5+ {[%clk 0:00:10.2]} 55. Kg6 {[%clk
0:00:07]} 55... Rxh5 {[%clk 0:00:10.7]} 56. Kxh5 {[%clk 0:00:07.9]} 1/2-1/2

[Event "*** Titled Tuesday Blitz"]
[Site "Chess.com"]
[Date "2021.04.20"]
[Round "11"]
[White "ChampStan"]
[Black "kuba2006"]
[Result "1-0"]
[WhiteElo "2119"]
[BlackElo "2316"]
[TimeControl "180+1"]
[EndTime "12:06:46 PDT"]
[Termination "ChampStan won on time"]

1. d4 {[%clk 0:03:00.9]} 1... Nf6 {[%clk 0:03:00.9]} 2. c4 {[%clk 0:03:00]} 2...
d6 {[%clk 0:03:01.2]} 3. Nf3 {[%clk 0:02:57.2]} 3... Nbd7 {[%clk 0:03:00.6]} 4.
g3 {[%clk 0:02:56.6]} 4... e5 {[%clk 0:02:58.4]} 5. Bg2 {[%clk 0:02:56.6]} 5...
Be7 {[%clk 0:02:57.9]} 6. O-O {[%clk 0:02:55.4]} 6... O-O {[%clk 0:02:57.7]} 7.
Nc3 {[%clk 0:02:56]} 7... c6 {[%clk 0:02:57.4]} 8. e4 {[%clk 0:02:55.2]} 8... a6
{[%clk 0:02:56.2]} 9. a4 {[%clk 0:02:53.9]} 9... a5 {[%clk 0:02:50.2]} 10. h3
{[%clk 0:02:53.7]} 10... Re8 {[%clk 0:02:36.7]} 11. Be3 {[%clk 0:02:51.6]} 11...
exd4 {[%clk 0:02:36.4]} 12. Nxd4 {[%clk 0:02:52.5]} 12... Nc5 {[%clk 0:02:36.3]}
13. Qc2 {[%clk 0:02:46.3]} 13... Bf8 {[%clk 0:02:12.5]} 14. Rfe1 {[%clk
0:02:40.4]} 14... g6 {[%clk 0:02:10.9]} 15. Rad1 {[%clk 0:02:37.8]} 15... Qe7
{[%clk 0:02:08.2]} 16. Bf4 {[%clk 0:02:34.9]} 16... Nfd7 {[%clk 0:02:02.5]} 17.
Be3 {[%clk 0:02:23.6]} 17... Bg7 {[%clk 0:01:59.2]} 18. f4 {[%clk 0:02:22]}
18... Na6 {[%clk 0:01:52.1]} 19. Bf2 {[%clk 0:02:17.5]} 19... Nb4 {[%clk
0:01:48.6]} 20. Qb1 {[%clk 0:02:17.3]} 20... Nc5 {[%clk 0:01:48.5]} 21. Kh2
{[%clk 0:02:00.5]} 21... h5 {[%clk 0:01:44.3]} 22. Nde2 {[%clk 0:01:24.1]} 22...
Bh6 {[%clk 0:01:16.6]} 23. Rd2 {[%clk 0:00:46]} 23... h4 {[%clk 0:01:07.7]} 24.
g4 {[%clk 0:00:44.7]} 24... Nb3 {[%clk 0:00:43.6]} 25. Rdd1 {[%clk 0:00:41.4]}
25... g5 {[%clk 0:00:43.2]} 26. fxg5 {[%clk 0:00:29.6]} 26... Bxg5 {[%clk
0:00:39.8]} 27. Kh1 {[%clk 0:00:18.4]} 27... Nd2 {[%clk 0:00:28.2]} 28. Rxd2
{[%clk 0:00:18.3]} 28... Bxd2 {[%clk 0:00:27.5]} 29. Rd1 {[%clk 0:00:19.2]}
29... Bg5 {[%clk 0:00:22.4]} 30. Nd4 {[%clk 0:00:18.5]} 30... Be6 {[%clk
0:00:17.2]} 31. b3 {[%clk 0:00:18.9]} 31... f6 {[%clk 0:00:14.6]} 32. Nce2
{[%clk 0:00:16.2]} 32... Rad8 {[%clk 0:00:13.1]} 33. Ng1 {[%clk 0:00:15.6]}
33... d5 {[%clk 0:00:08.9]} 34. exd5 {[%clk 0:00:13]} 34... cxd5 {[%clk
0:00:08.5]} 35. Re1 {[%clk 0:00:12.6]} 35... Qf7 {[%clk 0:00:05.1]} 36. c5
{[%clk 0:00:12.1]} 36... Qc7 {[%clk 0:00:04.5]} 37. Qg6+ {[%clk 0:00:10.4]}
37... Qg7 {[%clk 0:00:03.8]} 38. Qxg7+ {[%clk 0:00:10.5]} 38... Kxg7 {[%clk
0:00:04.7]} 39. Nxe6+ {[%clk 0:00:09.6]} 39... Rxe6 {[%clk 0:00:05]} 40. Rxe6
{[%clk 0:00:08.7]} 40... d4 {[%clk 0:00:05.4]} 41. Re1 {[%clk 0:00:04.4]} 41...
d3 {[%clk 0:00:05.6]} 42. Rd1 {[%clk 0:00:04.3]} 42... Na2 {[%clk 0:00:02.9]}
43. Nf3 {[%clk 0:00:03.4]} 43... Nc3 {[%clk 0:00:03]} 44. Rd2 {[%clk 0:00:03.1]}
44... Ne4 {[%clk 0:00:02.5]} 45. Nxg5 {[%clk 0:00:01.5]} 45... Nxd2 {[%clk
0:00:02.4]} 46. Ne6+ {[%clk 0:00:01]} 46... Kg6 {[%clk 0:00:01.9]} 47. Nxd8
{[%clk 0:00:01.9]} 47... Ne4 {[%clk 0:00:02.1]} 48. Bxe4+ {[%clk 0:00:02.1]} 1-0

[Event "*** Titled Tuesday Blitz"]
[Site "Chess.com"]
[Date "2021.04.20"]
[Round "11"]
[White "gisela_roque"]
[Black "Steegersee"]
[Result "0-1"]
[WhiteElo "1825"]
[BlackElo "2224"]
[TimeControl "180+1"]
[EndTime "12:06:46 PDT"]
[Termination "Steegersee won on time"]

1. c4 {[%clk 0:03:00.9]} 1... c6 {[%clk 0:02:55.6]} 2. Nf3 {[%clk 0:02:59.7]}
2... d5 {[%clk 0:02:56]} 3. b3 {[%clk 0:02:59.9]} 3... Nf6 {[%clk 0:02:51.3]} 4.
g3 {[%clk 0:02:58.5]} 4... g6 {[%clk 0:02:43.7]} 5. Bg2 {[%clk 0:02:55.5]} 5...
Bg7 {[%clk 0:02:43.8]} 6. O-O {[%clk 0:02:55.5]} 6... Ne4 {[%clk 0:02:34.5]} 7.
d4 {[%clk 0:02:54.6]} 7... O-O {[%clk 0:02:31.8]} 8. Bb2 {[%clk 0:02:51.5]} 8...
Bf5 {[%clk 0:02:16.9]} 9. Nc3 {[%clk 0:02:38.6]} 9... Nd7 {[%clk 0:02:10.3]} 10.
e3 {[%clk 0:02:38.5]} 10... a5 {[%clk 0:02:01.1]} 11. Nh4 {[%clk 0:02:37.9]}
11... Nxc3 {[%clk 0:01:57.5]} 12. Bxc3 {[%clk 0:02:37.2]} 12... dxc4 {[%clk
0:01:57.1]} 13. bxc4 {[%clk 0:02:36.6]} 13... Nb6 {[%clk 0:01:57.6]} 14. Nxf5
{[%clk 0:02:33.5]} 14... gxf5 {[%clk 0:01:55.5]} 15. Qe2 {[%clk 0:02:31]} 15...
e6 {[%clk 0:01:53.6]} 16. Rab1 {[%clk 0:02:26.8]} 16... Ra6 {[%clk 0:01:48]} 17.
Rb2 {[%clk 0:02:18.3]} 17... Na4 {[%clk 0:01:46.6]} 18. Rc2 {[%clk 0:02:13.6]}
18... Nxc3 {[%clk 0:01:46.8]} 19. Rxc3 {[%clk 0:02:13.7]} 19... Qd7 {[%clk
0:01:47.3]} 20. Rb3 {[%clk 0:02:10.6]} 20... Rb8 {[%clk 0:01:37.1]} 21. Rfb1
{[%clk 0:02:09.8]} 21... a4 {[%clk 0:01:09.7]} 22. Rb4 {[%clk 0:02:06.2]} 22...
Bf8 {[%clk 0:01:07.2]} 23. c5 {[%clk 0:02:04.7]} 23... b5 {[%clk 0:01:05.4]} 24.
e4 {[%clk 0:01:50.5]} 24... fxe4 {[%clk 0:01:00.2]} 25. Bxe4 {[%clk 0:01:49.8]}
25... f5 {[%clk 0:01:01.1]} 26. Bg2 {[%clk 0:01:36.8]} 26... Bg7 {[%clk
0:01:02]} 27. Rd1 {[%clk 0:01:34.8]} 27... h6 {[%clk 0:00:41.4]} 28. Qc2 {[%clk
0:01:18.8]} 28... Kf7 {[%clk 0:00:38.4]} 29. Qe2 {[%clk 0:01:10.6]} 29... Bf6
{[%clk 0:00:37.2]} 30. Qh5+ {[%clk 0:01:09.3]} 30... Kg7 {[%clk 0:00:37.7]} 31.
Qf3 {[%clk 0:00:52.3]} 31... Qf7 {[%clk 0:00:30.8]} 32. a3 {[%clk 0:00:49.8]}
32... Rd8 {[%clk 0:00:28.8]} 33. Qe2 {[%clk 0:00:36.6]} 33... Bg5 {[%clk
0:00:26.9]} 34. Rb2 {[%clk 0:00:32.3]} 34... Rd7 {[%clk 0:00:25.7]} 35. h4
{[%clk 0:00:24.4]} 35... Bf6 {[%clk 0:00:25.2]} 36. Rbd2 {[%clk 0:00:24.3]}
36... Rc7 {[%clk 0:00:23.8]} 37. Qf3 {[%clk 0:00:22]} 37... Ra8 {[%clk
0:00:22.4]} 38. Qf4 {[%clk 0:00:19.8]} 38... Rd8 {[%clk 0:00:19]} 39. Bf3 {[%clk
0:00:16.1]} 39... Rdd7 {[%clk 0:00:16.9]} 40. Qe3 {[%clk 0:00:13.8]} 40... Kh7
{[%clk 0:00:15.7]} 41. Qe2 {[%clk 0:00:13.6]} 41... Re7 {[%clk 0:00:15.6]} 42.
Bh5 {[%clk 0:00:13.3]} 42... Qg7 {[%clk 0:00:15.2]} 43. Qf3 {[%clk 0:00:13.1]}
43... Bxh4 {[%clk 0:00:14.2]} 44. Kh2 {[%clk 0:00:11.9]} 44... Bg5 {[%clk
0:00:14]} 45. Rd3 {[%clk 0:00:10.6]} 45... Bf6 {[%clk 0:00:14.5]} 46. g4 {[%clk
0:00:09.9]} 46... Qg5 {[%clk 0:00:13.3]} 47. gxf5 {[%clk 0:00:07.8]} 47... exf5
{[%clk 0:00:14.2]} 48. Qh3 {[%clk 0:00:05.4]} 48... f4 {[%clk 0:00:09.2]} 49.
Bf3 {[%clk 0:00:03.6]} 49... Qg7 {[%clk 0:00:07.7]} 50. Qf5+ {[%clk 0:00:02.1]}
50... Kh8 {[%clk 0:00:07.7]} 51. Be4 {[%clk 0:00:01.6]} 51... Bg5 {[%clk
0:00:07.7]} 52. Rh3 {[%clk 0:00:01.2]} 52... Qf6 {[%clk 0:00:07.2]} 0-1

[Event "*** Titled Tuesday Blitz"]
[Site "Chess.com"]
[Date "2021.04.20"]
[Round "11"]
[White "muchojogo"]
[Black "1977Ivan"]
[Result "0-1"]
[WhiteElo "2457"]
[BlackElo "2694"]
[TimeControl "180+1"]
[EndTime "12:06:52 PDT"]
[Termination "1977Ivan won by resignation"]

1. d4 {[%clk 0:03:00.9]} 1... Nf6 {[%clk 0:02:52.8]} 2. Bf4 {[%clk 0:03:00.9]}
2... d6 {[%clk 0:02:50.1]} 3. e3 {[%clk 0:03:00.5]} 3... Nbd7 {[%clk 0:02:49.9]}
4. Nf3 {[%clk 0:02:56.1]} 4... Nh5 {[%clk 0:02:49.8]} 5. Bg5 {[%clk 0:02:56.3]}
5... h6 {[%clk 0:02:49.6]} 6. Bh4 {[%clk 0:02:57]} 6... g5 {[%clk 0:02:50.1]} 7.
Bg3 {[%clk 0:02:57.3]} 7... Bg7 {[%clk 0:02:50.6]} 8. Be2 {[%clk 0:02:52.5]}
8... c5 {[%clk 0:02:47.2]} 9. c3 {[%clk 0:02:48.1]} 9... a6 {[%clk 0:02:43.7]}
10. a4 {[%clk 0:02:47.3]} 10... b6 {[%clk 0:02:42]} 11. Nbd2 {[%clk 0:02:14.9]}
11... Bb7 {[%clk 0:02:41]} 12. Qb3 {[%clk 0:02:11.2]} 12... Nxg3 {[%clk
0:02:39.7]} 13. hxg3 {[%clk 0:02:10.8]} 13... cxd4 {[%clk 0:02:15]} 14. exd4
{[%clk 0:02:05.5]} 14... Nf6 {[%clk 0:02:12.1]} 15. Nc4 {[%clk 0:01:47.8]} 15...
Nd5 {[%clk 0:02:11.3]} 16. Na5 {[%clk 0:01:47.5]} 16... bxa5 {[%clk 0:01:52.7]}
17. Qxb7 {[%clk 0:01:48.4]} 17... e6 {[%clk 0:01:52.9]} 18. Qc6+ {[%clk
0:01:45.7]} 18... Ke7 {[%clk 0:01:52.6]} 19. O-O {[%clk 0:01:26.5]} 19... Qb6
{[%clk 0:01:47.3]} 20. Qxb6 {[%clk 0:01:00.2]} 20... Nxb6 {[%clk 0:01:48.2]} 21.
b3 {[%clk 0:01:00.7]} 21... Rhc8 {[%clk 0:01:46]} 22. Rfc1 {[%clk 0:00:56.3]}
22... Nd5 {[%clk 0:01:46.4]} 23. Bc4 {[%clk 0:00:55]} 23... Nb6 {[%clk
0:01:42.4]} 24. Bd3 {[%clk 0:00:53.6]} 24... Rc7 {[%clk 0:01:37.4]} 25. Rc2
{[%clk 0:00:40.1]} 25... g4 {[%clk 0:01:28.1]} 26. Nd2 {[%clk 0:00:38]} 26... h5
{[%clk 0:01:09.5]} 27. Re1 {[%clk 0:00:37.4]} 27... Rb8 {[%clk 0:00:59.2]} 28.
Bxa6 {[%clk 0:00:35.2]} 28... Bxd4 {[%clk 0:00:58.3]} 29. Rec1 {[%clk
0:00:29.8]} 29... Bg7 {[%clk 0:00:54.9]} 30. Bb5 {[%clk 0:00:30.1]} 30... Rbc8
{[%clk 0:00:51.5]} 31. c4 {[%clk 0:00:28.2]} 31... Nd7 {[%clk 0:00:47.4]} 32.
Ne4 {[%clk 0:00:24.7]} 32... f5 {[%clk 0:00:42.2]} 33. Nd2 {[%clk 0:00:22.5]}
33... Nc5 {[%clk 0:00:41.9]} 34. Rb1 {[%clk 0:00:20.9]} 34... Bh6 {[%clk
0:00:40.9]} 35. Nf1 {[%clk 0:00:21]} 35... Ne4 {[%clk 0:00:37.2]} 36. f3 {[%clk
0:00:19.2]} 36... Nf6 {[%clk 0:00:34.2]} 37. Kf2 {[%clk 0:00:19.4]} 37... d5
{[%clk 0:00:33.7]} 38. Rd1 {[%clk 0:00:17.9]} 38... e5 {[%clk 0:00:30.4]} 39.
Re2 {[%clk 0:00:15.2]} 39... Kd6 {[%clk 0:00:27.6]} 40. cxd5 {[%clk 0:00:14.7]}
40... Rc2 {[%clk 0:00:26.6]} 41. Bc4 {[%clk 0:00:12.9]} 41... Rxe2+ {[%clk
0:00:24]} 42. Kxe2 {[%clk 0:00:13.8]} 42... e4 {[%clk 0:00:23.2]} 43. f4 {[%clk
0:00:13.6]} 43... Ne8 {[%clk 0:00:19.9]} 44. Ne3 {[%clk 0:00:13.7]} 44... Ng7
{[%clk 0:00:20]} 45. Nc2 {[%clk 0:00:13.5]} 45... h4 {[%clk 0:00:19.4]} 46. Rh1
{[%clk 0:00:10.9]} 46... Nh5 {[%clk 0:00:19.4]} 47. Rxh4 {[%clk 0:00:10.4]}
47... Nxg3+ {[%clk 0:00:19.5]} 48. Ke3 {[%clk 0:00:10.3]} 48... Bg7 {[%clk
0:00:18.5]} 49. Rh7 {[%clk 0:00:09.7]} 49... Bb2 {[%clk 0:00:17.4]} 50. Kf2
{[%clk 0:00:09.4]} 50... e3+ {[%clk 0:00:07.7]} 51. Kxg3 {[%clk 0:00:08.2]}
51... Re8 {[%clk 0:00:07.5]} 52. Be2 {[%clk 0:00:07.4]} 52... Bc3 {[%clk
0:00:05.1]} 53. Rh6+ {[%clk 0:00:06.8]} 53... Kd7 {[%clk 0:00:05.3]} 54. Rh7+
{[%clk 0:00:06.9]} 54... Kd6 {[%clk 0:00:05.4]} 55. Ra7 {[%clk 0:00:07.4]} 55...
Kxd5 {[%clk 0:00:05]} 56. Ra6 {[%clk 0:00:07]} 56... Ke4 {[%clk 0:00:04.5]} 57.
Ne1 {[%clk 0:00:07]} 57... Bxe1+ {[%clk 0:00:03.9]} 58. Kh2 {[%clk 0:00:07.6]}
58... Rh8+ {[%clk 0:00:04.3]} 59. Kg1 {[%clk 0:00:08.1]} 59... Bf2+ {[%clk
0:00:04.8]} 0-1

[Event "*** Titled Tuesday Blitz"]
[Site "Chess.com"]
[Date "2021.04.20"]
[Round "11"]
[White "viktorgen2021"]
[Black "artichaud"]
[Result "1-0"]
[WhiteElo "2372"]
[BlackElo "2229"]
[TimeControl "180+1"]
[EndTime "12:06:53 PDT"]
[Termination "viktorgen2021 won on time"]

1. d4 {[%clk 0:03:00.3]} 1... d6 {[%clk 0:02:59.6]} 2. Nf3 {[%clk 0:02:59.4]}
2... Nd7 {[%clk 0:02:59.1]} 3. g3 {[%clk 0:02:58.9]} 3... e5 {[%clk 0:03:00]} 4.
Bg2 {[%clk 0:02:56.4]} 4... Ngf6 {[%clk 0:02:56.5]} 5. O-O {[%clk 0:02:54.9]}
5... Be7 {[%clk 0:02:54.1]} 6. Nc3 {[%clk 0:02:54.1]} 6... c6 {[%clk 0:02:50.3]}
7. e4 {[%clk 0:02:53.7]} 7... O-O {[%clk 0:02:48.7]} 8. a4 {[%clk 0:02:52.9]}
8... Re8 {[%clk 0:02:45.5]} 9. h3 {[%clk 0:02:52.6]} 9... Qc7 {[%clk 0:02:41.9]}
10. Re1 {[%clk 0:02:52.5]} 10... h6 {[%clk 0:02:41.7]} 11. Be3 {[%clk
0:02:45.5]} 11... Nh7 {[%clk 0:02:37.6]} 12. Qd2 {[%clk 0:02:40.6]} 12... a5
{[%clk 0:02:17.3]} 13. Rad1 {[%clk 0:02:37.8]} 13... Qd8 {[%clk 0:01:55.2]} 14.
Qe2 {[%clk 0:02:23.5]} 14... Ng5 {[%clk 0:01:50]} 15. dxe5 {[%clk 0:02:12]}
15... Nxf3+ {[%clk 0:01:46.1]} 16. Bxf3 {[%clk 0:02:09.2]} 16... dxe5 {[%clk
0:01:47]} 17. Bg2 {[%clk 0:02:08.8]} 17... Bg5 {[%clk 0:01:42.1]} 18. f4 {[%clk
0:02:02.9]} 18... exf4 {[%clk 0:01:38.1]} 19. gxf4 {[%clk 0:02:03.8]} 19... Bh4
{[%clk 0:01:37.8]} 20. Rf1 {[%clk 0:02:03.3]} 20... Qc7 {[%clk 0:01:32.5]} 21.
Qc4 {[%clk 0:01:48.7]} 21... Nf6 {[%clk 0:01:10.6]} 22. e5 {[%clk 0:01:42]}
22... Nh5 {[%clk 0:01:09.6]} 23. Nb5 {[%clk 0:01:22.6]} 23... Qe7 {[%clk
0:01:01.5]} 24. Nd6 {[%clk 0:01:21.9]} 24... Rf8 {[%clk 0:00:58.4]} 25. Nxc8
{[%clk 0:01:19.1]} 25... Raxc8 {[%clk 0:00:57.8]} 26. Bc5 {[%clk 0:01:18.2]}
26... Qe6 {[%clk 0:00:50.7]} 27. Qxe6 {[%clk 0:01:07.6]} 27... fxe6 {[%clk
0:00:51.6]} 28. Bxf8 {[%clk 0:01:08]} 28... Rxf8 {[%clk 0:00:51.9]} 29. f5
{[%clk 0:01:08.5]} 29... Ng3 {[%clk 0:00:45]} 30. Rf4 {[%clk 0:01:04.2]} 30...
Ne2+ {[%clk 0:00:40.8]} 31. Kh2 {[%clk 0:01:01.1]} 31... Nxf4 {[%clk 0:00:41.7]}
32. fxe6 {[%clk 0:01:00.2]} 32... Nxe6 {[%clk 0:00:38.3]} 33. Rd6 {[%clk
0:00:57.3]} 33... Re8 {[%clk 0:00:36.1]} 34. Rd7 {[%clk 0:00:55.6]} 34... Re7
{[%clk 0:00:34.7]} 35. Rd3 {[%clk 0:00:50.4]} 35... Bg5 {[%clk 0:00:34]} 36. Kg1
{[%clk 0:00:46.1]} 36... Bf4 {[%clk 0:00:33]} 37. Be4 {[%clk 0:00:37.9]} 37...
Bxe5 {[%clk 0:00:31.1]} 38. Bg6 {[%clk 0:00:34.8]} 38... Kf8 {[%clk 0:00:24.6]}
39. c3 {[%clk 0:00:32.8]} 39... Bc7 {[%clk 0:00:16.2]} 40. Bf5 {[%clk
0:00:24.9]} 40... Nf4 {[%clk 0:00:15.3]} 41. Rd2 {[%clk 0:00:25.1]} 41... g6
{[%clk 0:00:14.6]} 42. Bg4 {[%clk 0:00:25.1]} 42... h5 {[%clk 0:00:14.2]} 43.
Bf3 {[%clk 0:00:25.1]} 43... Re3 {[%clk 0:00:14]} 44. Kf2 {[%clk 0:00:24]} 44...
Bb6 {[%clk 0:00:13.3]} 45. Kg3 {[%clk 0:00:21.6]} 45... Nd3 {[%clk 0:00:09.8]}
46. Kg2 {[%clk 0:00:15.2]} 46... Ne1+ {[%clk 0:00:08.1]} 47. Kg3 {[%clk
0:00:12.6]} 47... Rxf3+ {[%clk 0:00:07.3]} 48. Kh4 {[%clk 0:00:11.3]} 48... Rf5
{[%clk 0:00:05.2]} 49. Re2 {[%clk 0:00:10.8]} 49... Nf3+ {[%clk 0:00:04.9]} 50.
Kg3 {[%clk 0:00:11.3]} 50... Bc7+ {[%clk 0:00:04.7]} 51. Kg2 {[%clk 0:00:11.6]}
51... Nh4+ {[%clk 0:00:04.3]} 52. Kg1 {[%clk 0:00:12]} 52... Rf7 {[%clk
0:00:04]} 53. Re6 {[%clk 0:00:12.3]} 53... Kg7 {[%clk 0:00:02.8]} 54. b4 {[%clk
0:00:11.6]} 54... Nf5 {[%clk 0:00:03.4]} 55. b5 {[%clk 0:00:11.3]} 55... cxb5
{[%clk 0:00:03.3]} 56. axb5 {[%clk 0:00:12.2]} 1-0